Cogmind - Beta 11.1 @@@ ROGUE MODE // 2022.07.06 @ 23:03:18 Player: Dickface Result: Destroyed by G-47 Trooper with Particle Gun Performance ------------- Evolutions (3) 1500 Regions Visited (5) 1000 Robots Destroyed (78) 390 Value Destroyed (2900) 2900 Prototype IDs (6) 120 Alien Tech Used (0) 0 Bonus (268) 268 TOTAL SCORE: 6178 Bonus ------- High Alert Combat Kills 268 Cogmind --------- Core Integrity 0/700 Matter 117/300 Energy 350/350 System Corruption 2% Temperature Cool (96) Movement Rolling (215) Ox9 Location -7/Storage Parts ------- > --- POWER (2) -------- Light Deuterium Engine Cooled Deuterium Engine > --- PROPULSION (3) --- Aluminum Leg Wheel Wheel > --- UTILITY (5) ------ Huge Storage Unit Huge Storage Unit > --- WEAPON (3) ------- Cooled Particle Cannon Mini Assault Cannon Mini Grenade Launcher > --- INVENTORY (25) --- Light Nuclear Core Improved Deuterium Engine Micro Nuclear Core Aluminum Leg Aluminum Leg Aluminum Leg Aluminum Leg Armored Wheel Huge Storage Unit Improved EM Shotgun Small Laser Particle Gun Pulse Rifle Pulse Rifle Cooled Pulse Rifle EM Pulse Cannon Ion Cannon Ion Cannon Ion Cannon Autogun Autogun Gauss Cannon Peak State ------------ > --- POWER ------------ Light Deuterium Engine Cooled Deuterium Engine > --- PROPULSION ------- Compact Wheel Armored Wheel Armored Wheel > --- UTILITY ---------- Improved Heat Sink Huge Storage Unit Huge Storage Unit Reactive Plating Long-range Tractor Beam > --- WEAPON ----------- Cooled Particle Cannon Cooled Plasma Cannon Mini Assault Cannon > --- INVENTORY -------- Light Deuterium Engine Light Nuclear Core Improved Deuterium Engine Micro Nuclear Core Aluminum Leg Aluminum Leg Aluminum Leg Aluminum Leg Aluminum Leg Huge Storage Unit Improved EM Shotgun Small Laser Particle Gun Pulse Rifle Pulse Rifle Cooled Pulse Rifle EM Pulse Cannon Ion Cannon Ion Cannon Ion Cannon Autogun Autogun Gauss Cannon Mini Grenade Launcher Mini Grenade Launcher [Rating: 46] Favorites ----------- Power Ion Engine Engine Ion Engine Power Core Light Nuclear Core Propulsion Armored Wheel Leg Aluminum Leg Wheel Armored Wheel Utility Huge Storage Unit Device Improved Heat Sink Storage Huge Storage Unit Processor Targeting Computer Protection Reactive Plating Weapon Autogun Energy Gun Particle Gun Energy Cannon Cooled Plasma Cannon Ballistic Gun Autogun Ballistic Cannon Mini Assault Cannon Launcher Mini Grenade Launcher Impact Weapon Heavy Hammer Build | -11 -10 -9 -8 -7 -7 ------- Run | Scr Mat Mat Mat Fac Sto Slots Evolved 6 | . . 2 2 2 . Power 1 | . . . 1 . . Propulsion 1 | . . 1 . . . Utility 3 | . . 1 1 1 . Weapon 1 | . . . . 1 . Parts Attached 72 | 5 4 16 11 16 20 Power 13 | 2 . 1 3 4 3 Engine 9 | 2 . 1 3 1 2 Core 4 | . . . . 3 1 Reactor . | . . . . . . Propulsion 18 | 2 1 5 1 2 7 Treads . | . . . . . . Leg 3 | . . . . . 3 Wheel 15 | 2 1 5 1 2 4 Hover . | . . . . . . Flight . | . . . . . . Utility 15 | 1 1 3 1 4 5 Device 3 | . . . . 1 2 Storage 6 | 1 1 2 1 . 1 Processor 1 | . . . . 1 . Hackware . | . . . . . . Protection 5 | . . 1 . 2 2 Artifact . | . . . . . . Weapon 26 | . 2 7 6 6 5 Energy Gun 4 | . 1 . 1 2 . Energy Cannon 4 | . . 1 . 1 2 Ballistic Gun 7 | . 1 3 1 2 . Ballistic Cannon 1 | . . . . . 1 Launcher 9 | . . 2 4 1 2 Special Weapon . | . . . . . . Impact Weapon 1 | . . 1 . . . Slashing Weapon . | . . . . . . Piercing Weapon . | . . . . . . Special Melee Weapon . | . . . . . . Unidentified Prototypes 6 | . . 1 . . 5 Corrupted Parts 1 | . . 1 . . . System Corruption 7 | . . 7 . . . Parts Lost 36 | . 1 4 9 9 13 Power 10 | . . 1 3 3 3 Propulsion 11 | . 1 3 1 2 4 Utility 10 | . . . 2 3 5 Weapon 5 | . . . 3 1 1 Highest Loss Streak 8 | . 1 2 8 3 4 To Critical Strikes 2 | . . . 1 1 . Average Slot Usage (%) 92 | . 81 95 92 93 89 Engine 8 | . 14 10 15 3 9 Core 4 | . . . . 9 3 Wheel 23 | . 27 30 26 22 18 Device 1 | . . . . 2 3 Storage 19 | . 18 26 25 15 15 Processor 2 | . . . . 6 1 Protection 7 | . . 5 6 8 10 Energy Gun 2 | . 10 1 2 5 . Energy Cannon 4 | . . 8 1 . 8 Ballistic Gun 9 | . 10 9 8 13 4 Launcher 3 | . . 2 5 2 5 Naked Turns . | . . . . . . Heaviest Build 207 | 10 17 99 105 127 207 Greatest Support 40 | 20 26 36 36 36 40 Greatest Overweight (x) 18 | . . 3 3 4 18 Average Overweight (x) 2 | . . 1 2 2 4 Largest Inventory Capacity 25 | 8 8 25 25 25 25 Average Capacity 22 | 6 8 19 25 25 25 Most Carried 25 | 8 8 25 21 25 25 Average Carried 19 | 5 7 16 18 22 23 Final Capacity 25 | 8 8 25 25 25 25 Final Carried 23 | 8 8 22 16 23 22 Class Distribution -------------------- 51% | Mutant 27% | Tank 13% | Gunner 7% | Scavenger-Mutant Dominant Class ---------------- Mutant | -10/Materials Mutant | -9/Materials Mutant | -8/Materials Mutant | -7/Factory Tank | -7/Storage Resources | -11 -10 -9 -8 -7 -7 ----------- Run | Scr Mat Mat Mat Fac Sto Matter Collected 1789 | 249 205 394 78 429 434 Remotely 35 | . . . . . 35 Salvage Created 2410 | . 53 580 546 537 694 Parts 149 | . 6 42 28 41 32 Haulers Intercepted 2 | . . . . . 2 Recyclers Shooed 3 | . . 1 2 . . Parts Field Recycled . | . . . . . . Retrieved Matter . | . . . . . . Parts Self-Destructed . | . . . . . . Prevented . | . . . . . . Kills | -11 -10 -9 -8 -7 -7 ------- Run | Scr Mat Mat Mat Fac Sto Combat Hostiles Destroyed 65 | . 1 18 16 13 17 Guns 17 | . 1 3 4 9 . Cannons 16 | . . 9 . 1 6 AOE 30 | . . 5 12 3 10 Classes Destroyed 15 | . 2 4 4 4 1 Worker 3 | . . . 1 2 . Builder 3 | . . 1 1 . 1 Tunneler 1 | . . 1 . . . Hauler 2 | . . . . . 2 Recycler 1 | . . . 1 . . Operator 1 | . . . . 1 . Watcher 2 | . 1 . . . 1 Swarmer 13 | . . 3 4 3 3 Grunt 31 | . 1 12 8 4 6 Brawler 2 | . . . 2 . . Sentry 9 | . . 3 1 . 5 Specialist 3 | . . . . 3 . Hunter 4 | . . . 1 1 2 Programmer 2 | . . . . 1 1 Heavy 1 | . . . . 1 . Best Kill Streak 9 | . 1 6 9 8 5 Combat Bots Only 8 | . 1 4 8 5 4 Max Kills in Single Turn 4 | . 1 2 4 2 3 Gunslinging . | . . . . . . Exploded 3 | . . 1 3 2 2 Melee . | . . . . . . Uniques/NPCs Destroyed . | . . . . . . Combat | -11 -10 -9 -8 -7 -7 -------- Run | Scr Mat Mat Mat Fac Sto Damage Taken 5126 | . 171 644 961 1494 1856 Core 1003 | . 30 84 185 405 299 Absorbed by Shields . | . . . . . . Core Remaining (%) 83 | 100 88 79 66 . . Volleys Fired 157 | . 11 43 37 31 35 Largest 3 | . 2 2 2 3 3 Hottest 183 | . 70 101 91 151 183 Shots Fired 356 | . 22 84 72 83 95 Gun 204 | . 22 40 51 72 19 Cannon 91 | . . 31 2 6 52 Launcher 61 | . . 13 19 5 24 Special . | . . . . . . Kinetic 158 | . 11 38 31 45 33 Thermal 137 | . 11 33 22 33 38 Explosive 61 | . . 13 19 5 24 Electromagnetic . | . . . . . . Robot Hit Streak 18 | . 7 8 18 9 17 Robot Miss Streak 7 | . 2 2 7 2 2 Penetration Max . | . . . . . . Secondary Targets 1 | . . 1 . . . Max Gunslinging Chain 1 | . . 1 . . . Shots Hit Robots 238 | . 13 54 47 59 65 Core Hits 152 | . 4 34 35 40 39 Critical Kills 1 | . . 1 . . . Critical Parts Destroyed . | . . . . . . Critical Strikes 2 | . . 1 . 1 . Burn 1 | . . . . 1 . Meltdown 1 | . . 1 . . . Melee Attacks . | . . . . . . Impact . | . . . . . . Slashing . | . . . . . . Piercing . | . . . . . . Sneak Attacks . | . . . . . . Combat Hostiles . | . . . . . . Follow-up Attacks . | . . . . . . Damage Inflicted 7718 | . 133 1289 1908 1583 2805 Guns 1998 | . 133 214 587 840 224 Cannons 1882 | . . 391 20 91 1380 Explosions 3838 | . . 684 1301 652 1201 Melee . | . . . . . . Ramming . | . . . . . . Kinetic 1568 | . 45 202 328 537 456 Thermal 2312 | . 88 403 279 394 1148 Explosive 3788 | . . 634 1301 652 1201 Electromagnetic 50 | . . 50 . . . Impact . | . . . . . . Slashing . | . . . . . . Piercing . | . . . . . . Highest Corruption 7 | . . 7 . . 2 Average Corruption 3 | . . 7 . . 1 Corruption Purged . | . . . . . . Corruption Blocked . | . . . . . . Effects 21 | . . 16 . . 5 Message Errors 4 | . . 4 . . . Matter Fused 8 | . . 6 . . 2 Energy Discharges 6 | . . 3 . . 3 Data Loss (minor) 2 | . . 2 . . . Misfires 1 | . . 1 . . . Overload Shots 18 | . . . . . 18 Effects 1 | . . . . . 1 Energy Bleed 1 | . . . . . 1 Overflow Damage 64 | . . 32 3 7 22 Projectiles 22 | . . . . . 22 Explosions 42 | . . 32 3 7 . Melee . | . . . . . . Knockbacks 1 | . . . . . 1 Impact . | . . . . . . Kinetic 1 | . . . . . 1 Secondary . | . . . . . . Self-Inflicted Damage 447 | . . 51 196 22 178 Shots 15 | . . 1 6 1 7 Rammed . | . . . . . . Targets Rammed . | . . . . . . Kicked . | . . . . . . Crushed . | . . . . . . Highest Temperature 603 | . 120 326 475 603 542 Average Temperature 151 | . 52 86 182 215 140 Received Heat Transfer 1449 | . 96 243 351 261 498 Effects 36 | . . . 7 20 9 Shutdowns 13 | . . . 4 6 3 Energy Bleed 4 | . . . 1 2 1 Interference 8 | . . . . 7 1 Matter Decay 1 | . . . . 1 . Damage (minor) 3 | . . . . . 3 Damage (major) 4 | . . . 2 2 . Damage (core) 3 | . . . . 2 1 Siege Activations . | . . . . . . Robots Corrupted . | . . . . . . Combat Hostiles . | . . . . . . Parts Fried . | . . . . . . Impact Corruptions . | . . . . . . Robots Melted 2 | . . 1 . . 1 Combat Hostiles 2 | . . 1 . . 1 Parts Melted 4 | . 1 1 . . 2 Heat Transferred 4068 | . 259 740 703 888 1478 Parts Sabotaged . | . . . . . . Parts Stolen . | . . . . . . Parts Stripped . | . . . . . . Power Chain Reactions . | . . . . . . Missiles Intercepted . | . . . . . . Alert | -11 -10 -9 -8 -7 -7 ------- Run | Scr Mat Mat Mat Fac Sto Peak Influence 755 | . 54 631 755 373 541 Initial 343 | . . 22 230 343 133 Average 322 | . 25 408 487 278 322 Maximum Alert Level 3 | . . 2 3 1 2 Low Security (%) 18 | 100 100 15 . 20 2 Level 1 58 | . . 20 34 79 89 Level 2 22 | . . 64 50 . 7 Level 3 1 | . . . 14 . . Level 4 . | . . . . . . Level 5 . | . . . . . . High Security . | . . . . . . Max Security . | . . . . . . Squads Dispatched 15 | . 1 2 2 7 3 Investigation 2 | . . 1 . 1 . Extermination 2 | . . . . 1 1 Reinforcement 11 | . 1 1 2 5 2 Assault . | . . . . . . Garrison . | . . . . . . Intercept . | . . . . . . Searches Triggered . | . . . . . . Construction Impeded 4 | . . 1 1 1 1 Haulers Reinforced . | . . . . . . Active Scanning Responses . | . . . . . . Cargo Convoy Interrupts . | . . . . . . Stealth | -11 -10 -9 -8 -7 -7 --------- Run | Scr Mat Mat Mat Fac Sto Distress Signals 8 | . . 4 2 . 2 Communications Jammed . | . . . . . . Distress Signals . | . . . . . . Times Spotted 101 | . 5 30 21 20 25 Peak Tracking Total 8 | . 3 6 8 7 6 Tactical Retreats 5 | . . 3 2 . . Traps | -11 -10 -9 -8 -7 -7 ------- Run | Scr Mat Mat Mat Fac Sto Traps Triggered 7 | . . 1 . 5 1 Indirectly . | . . . . . . Trap Hack Attempts . | . . . . . . Triggered . | . . . . . . Disarmed . | . . . . . . Reprogrammed . | . . . . . . Reused . | . . . . . . Traps Extracted . | . . . . . . Installed . | . . . . . . Triggered . | . . . . . . Machines | -11 -10 -9 -8 -7 -7 ---------- Run | Scr Mat Mat Mat Fac Sto Machines Disabled 15 | . . 7 2 . 6 Max in Single Turn 2 | . . 2 1 . 1 Machines Sabotaged . | . . . . . . Garrisons Compromised . | . . . . . . Overloaded Fab Kills . | . . . . . . Hacking | -11 -10 -9 -8 -7 -7 --------- Run | Scr Mat Mat Mat Fac Sto Machines Accessed 2 | . 1 . . . 1 Terminals 2 | . 1 . . . 1 Fabricators . | . . . . . . Repair Stations . | . . . . . . Recycling Units . | . . . . . . Scanalyzers . | . . . . . . Garrison Access . | . . . . . . Total Hacks 3 | . 2 . . . 1 Successful 2 | . 1 . . . 1 Failed 1 | . 1 . . . . Catastrophic 1 | . 1 . . . . Database Lockouts . | . . . . . . Manual . | . . . . . . Terminals 3 | . 2 . . . 1 Fabricators . | . . . . . . Repair Stations . | . . . . . . Recycling Units . | . . . . . . Scanalyzers . | . . . . . . Garrison Access . | . . . . . . Terminal Hacks 2 | . 1 . . . 1 Open Door 1 | . . . . . 1 Recall Investigation 1 | . 1 . . . . Fabricator Hacks . | . . . . . . Repair Station Hacks . | . . . . . . Recycling Unit Hacks . | . . . . . . Scanalyzer . | . . . . . . Garrison Access Hacks . | . . . . . . Unauthorized Hacks . | . . . . . . Terminals . | . . . . . . Fabricators . | . . . . . . Repair Stations . | . . . . . . Recycling Units . | . . . . . . Scanalyzers . | . . . . . . Garrison Access . | . . . . . . Data Cores Recovered . | . . . . . . Used . | . . . . . . Hacking Detections 1 | . 1 . . . . Full Trace Events . | . . . . . . Feedback Events . | . . . . . . Feedback Blocked . | . . . . . . Robot Schematics Acquired . | . . . . . . Robots Built . | . . . . . . Authchips . | . . . . . . Time . | . . . . . . Total Robot Build Rating . | . . . . . . Part Schematics Acquired . | . . . . . . Parts Built . | . . . . . . Authchips . | . . . . . . Time . | . . . . . . Total Part Build Rating . | . . . . . . Parts Repaired . | . . . . . . Time . | . . . . . . Parts Recycled . | . . . . . . Recycled Matter . | . . . . . . Retrieved Matter . | . . . . . . Retrieved Components . | . . . . . . Parts Scanalyzed . | . . . . . . Part Schematics Acquired . | . . . . . . Parts Damaged . | . . . . . . Bothacking | -11 -10 -9 -8 -7 -7 ------------ Run | Scr Mat Mat Mat Fac Sto Used RIF Installer . | . . . . . . Robots Hacked . | . . . . . . Non-combat . | . . . . . . Combat . | . . . . . . Robot Hacks Applied . | . . . . . . Relay Couplers Released . | . . . . . . Fabnet Peak Effective % . | . . . . . . Robots Rewired . | . . . . . . Allies Hacked . | . . . . . . Hacks Repelled . | . . . . . . Allies | -11 -10 -9 -8 -7 -7 -------- Run | Scr Mat Mat Mat Fac Sto Total Allies . | . . . . . . Largest Group . | . . . . . . Highest-Rated Group . | . . . . . . Highest-Rated Ally . | . . . . . . Total Orders . | . . . . . . Ally Attacks . | . . . . . . Total Damage . | . . . . . . Kills . | . . . . . . Allies Corrupted . | . . . . . . Allies Melted . | . . . . . . Intel | -11 -10 -9 -8 -7 -7 ------- Run | Scr Mat Mat Mat Fac Sto Robot Analysis Total . | . . . . . . Derelict Logs Recovered . | . . . . . . Drone Launches . | . . . . . . Drone Recoveries . | . . . . . . Exploration | -11 -10 -9 -8 -7 -7 ------------- Run | Scr Mat Mat Mat Fac Sto Turns Passed 3009 | 46 192 669 330 917 855 Spaces Moved 1631 | 41 180 333 159 497 421 Core 13 | 13 . . . . . Treads . | . . . . . . Legs 2 | . . . . . 2 Wheels 1616 | 28 180 333 159 497 419 Hover . | . . . . . . Flight . | . . . . . . Fastest Speed 50 | 50 80 86 116 120 135 Average Speed 125 | 70 80 104 127 129 161 Slowest Speed 540 | 80 90 135 131 150 540 Overloaded Moves . | . . . . . . Propulsion Burnouts . | . . . . . . Robots Hopped . | . . . . . . Cave-ins Triggered . | . . . . . . Exploration Rate (%) 32 | 3 54 34 27 16 62 Regions Visited 5 Branch Regions 1 Pre-discovered Areas . | . . . . . . Known Exits Taken . | . . . . . . Unknown Exits Taken 5 | 1 1 1 1 1 . Scrap Searched . | . . . . . . Spaces Dug . | . . . . . . Terrain Destroyed 381 | . . 24 134 35 188 Melee . | . . . . . . Projectile 14 | . . . . . 14 AOE 367 | . . 24 134 35 174 Terrain Rammed . | . . . . . . Walls Destroyed . | . . . . . . Machines Disabled . | . . . . . . Actions | -11 -10 -9 -8 -7 -7 --------- Run | Scr Mat Mat Mat Fac Sto Total 2313 | 57 208 581 222 713 532 Wait 312 | . 6 150 11 117 28 Move 1626 | 40 179 332 158 496 421 Hop . | . . . . . . Pick Up 85 | 11 6 26 2 23 17 Fast Attach 6 | 1 . 5 . . . Attach 63 | 3 4 9 11 16 20 Detach 14 | . . 4 3 2 5 Swap 3 | 1 . 2 . . . Drop 23 | 1 2 10 . 4 6 Fire 157 | . 11 43 37 31 35 Melee . | . . . . . . Ram . | . . . . . . Kick . | . . . . . . Crush . | . . . . . . Escape Stasis 24 | . . . . 24 . Rewire . | . . . . . . Trap . | . . . . . . Miscellaneous . | . . . . . . Route ------- -11/Scrapyard -10/Materials -9/Materials -8/Materials -7/Factory -7/Storage History --------- Turn | Location | Event 14 | -11/Scrapyard | Discovered new exit (range 16) 47 | -11/Scrapyard | Entered Materials 204 | -10/Materials | Discovered new exit (range 6) 239 | -10/Materials | Entered another Materials area 239 | -9/Materials | Evolved 2 slots: Propulsion x1, Utility x1 332 | -9/Materials | Build established: Mutant 890 | -9/Materials | Discovered new exit (range 16) 908 | -9/Materials | Entered another Materials area 908 | -8/Materials | Evolved 2 slots: Power x1, Utility x1 1046 | -8/Materials | Destroyed 7 combat bots 1213 | -8/Materials | Destroyed 8 combat bots 1215 | -8/Materials | Lost 8 parts (3p1n2u2w) 1233 | -8/Materials | Discovered new exit (range 4) 1238 | -8/Materials | Entered Factory 1238 | -7/Factory | Evolved 2 slots: Utility x1, Weapon x1 1665 | -7/Factory | Lost 3 parts (2p1u) 1759 | -7/Factory | Core integrity fell below 50% 2088 | -7/Factory | Build established: Tank 2118 | -7/Factory | Discovered new exit (range 6) 2155 | -7/Factory | Entered Storage 2202 | -7/Storage | Lost 4 parts (1p1n2u) 2730 | -7/Storage | Core integrity fell below 20% 2905 | -7/Storage | Lost 4 parts (1p1n2u) 2948 | -7/Storage | Lost 3 parts (1n1u1w) 3010 | -7/Storage | Destroyed by G-47 Trooper with Particle Gun Last Messages --------------- 02945_ U-05 Engineer lays Concrete. 02945_ ALERT: Construction progress impeded, dispatching reinforcements to local area. 02947_ Acquired 16 matter. 02949_ U-05 Engineer lays Concrete. 02952_ U-05 Engineer builds a Wall. 02953_ The unstable cave ceiling collapses. 02957_ K-01 Serf cleans the Terminal. 02958_ Acquired Wheel. 02964_ The unstable cave ceiling collapses. 02964_ U-05 Engineer builds a Wall. 02964_ U-05 Engineer lays Concrete. 02965_ U-05 Engineer builds a Door. 02966_ The unstable cave ceiling collapses. 02968_ U-05 Engineer builds a Wall. 02976_ U-05 Engineer lays Concrete. 02996_ K-01 Serf collects debris. 03007_ G-47 Trooper destroyed. 03007_ Storage Shell breached. 03007_ Critical hit (Burn: +37). Map ----- +----------------------------------------------------+ | ???????????Y #??????????????????????????? | | ????????????" "" ##??????????????????????????? | | ????????????# "" ##?????????????????????????? | | ????????????# "" ??????????????????????????? | | ????????????# ###????????????????????????? | | ?????????????# #??? #???????????????????? | | ??????"###### = # ### #???????????????????? | | ??????" [ #???????????????????? | | ??????" %* #???????????????????? | | ????????????# |[[ # # ####?????????????????????? | | ????????????# % #### #?????????????????????? | | ###############!* # #? ???????????????????? | | # """"" """"" / T + # ""??????????????????? | | # """"" """"" # ##"### # "!??????????????????? | | # """"" """"" # ##???# # ???????????????????? | | # # #????# ???????????????????? | | # # #????# !% "???????????????????? | | # ! # #????# g g "????????????????? | | ### ###+#### #????# ?????????????? | | ### # ## #?## ##???# ##########???????????? | | ## #### # ### ##### # #???????????? | | # !!! #???????????? | | T + !!! #???????????? | | # # *]] ### ##### # !! #???????????? | | #+## * ] #?##+###???## ### #???????????? | | ] =* #??? ???????#@#??? """ #???????????? | | # #??? ???????# #??? """ #???????????? | | # +??? ???????# #???? """ #???????????? | | "" # #???????????# #???? ?????????????? | | ?" + #???????????# #?????## #?????????????? | | ?" # #???????????# #???????##???????####### | | ?" # #???????????# #????????????????# # | | ? # #??????????? #????????????????# # | | # """ ####???????? #????????????????# T# | | +### """ # ????????? ??????????????????? ## | | ??# """ # "????????? ?????????############+## | | ??# # "????????? ?????????# + + | | ??# + "????????? ?????????# """ """ # # | | ??# """ # "????????? ?????????# """ """ # # | | ### """ # "???????? ?????????# """ """ + # | | "## """ # "??????? ?????????# """ """ ### # | | # ?????????????????# """ """ #?# # | | #######????????????????# #?# # | | #=### ######??????????????????????# ! #?# # | | #%"## ## ######????????????###########+######## # | | *! # # ?????????????# | | % # """ ""?????????????# """" | | # " ""?????????????# " [" | | # " """ ""?????????# "] " ### +### | | # # ???????# """[] %= # | +----------------------------------------------------+ Best States ------------- Heat Dissipation 56 Energy Generation 27 Energy Capacity 500 Matter Stores 500 Matter Capacity 500 Sight Range 16 Terrain Scan Density 10 Armor Coverage 300 Resistance: KI 20 Evasion (%) 50 Targeting Accuracy 5 Item Schematics ----------------- None Robot Schematics ------------------ None Fabricated ------------ Nothing Alien Tech Used ----------------- None Achievements -------------- Loot Pinata Overkill Remodeling Challenges ------------ None Game ------ Seed MasterMiniWheel Manual? 0 Play Time 00:41:35 Cumulative 16.9 hours Start 2022.07.06 @ 22:26:03 End 2022.07.06 @ 23:03:18 Sessions 1 Manual Loads 0 Difficulty Rogue Special Mode None Game No. 43 Rogue 43 Adventurer 0 Explorer 0 Win Type - Total 0 Types 0/0/0/0/0/0/0/0/0 Lore% 10 Gallery% 20 Achievement% 11 Wizard Run 0 Options --------- ASCII 0 Keyboard 0 Movement Mouse Keybinds 0 Fullscreen 2 Font 18/TerminusBold Map View 76x50 Tactical HUD 1 Map Filters NONE Filters NONE Steam 1 RUN: 506b6ee3-61ec-4397-a17e-853c1c44f579